bitfinex-derivatives/quotes_SOLF0:USTF0_20220109
["timestamp","ask_amount","ask_price","bid_price","bid_amount"]
[1641757632343,5.50811483,145.25,145.19,4.0]
[1641757632843,5.50811483,145.25,145.15,36.26379]
[1641757633044,5.50811483,145.25,145.15,52.57810267]
[1641757633645,5.50811483,145.25,145.19,4.0]
[1641757634345,5.50811483,145.25,145.2,4.0]
[1641757634544,5.50811483,145.25,145.15,47.97910267]
[1641757634545,5.50811483,145.25,145.18,4.0]
[1641757634745,5.50811483,145.25,145.15,42.25810267]
[1641757635147,5.50811483,145.25,145.2,3.91175599]
[1641757636045,5.50932836,145.21,145.15,14.59331267]
[1641757636246,66.62790836,145.21,145.15,14.59331267]
[1641757636745,66.62790836,145.21,145.14,5.721]
[1641757637046,5.51046952,145.18,145.13,4.0]
[1641757637245,11.81046952,145.18,145.13,4.0]
[1641757637445,11.81046952,145.18,145.12,14.59331267]
[1641757637848,11.81046952,145.18,145.12,4.0]
[1641757638045,5.51119169,145.16,145.11,14.59331267]
[1641757638247,5.51119169,145.16,145.11,18.59331267]
[1641757638647,5.51119169,145.16,145.11,4.0]
[1641757639849,27.66479,145.17,145.13,4.0]
[1641757640049,5.51004003,145.19,145.14,4.0]
[1641757640657,27.66479,145.21,145.17,4.0]
[1641757640859,21.20438804,145.22,145.15,12.8006152]
[1641757641056,6.61107537,145.22,145.15,12.8006152]
[1641757641556,2.92851894,145.17,145.15,12.8006152]
[1641757641757,2.92851894,145.17,145.16,4.0]
[1641757642362,2.92851894,145.17,145.15,3.9126152]
[1641757642560,10.59451894,145.17,145.15,3.9126152]
[1641757642958,16.10530676,145.17,145.15,3.9126152]
[1641757643458,5.51153014,145.16,145.15,3.9126152]
[1641757644158,5.51153014,145.16,145.09,14.59331267]
[1641757644559,5.51232007,145.13,145.09,14.59331267]
[1641757644759,14.33132007,145.13,145.1,4.0]
[1641757645558,8.819,145.13,145.1,4.0]
[1641757646360,8.819,145.13,145.08,14.59331267]
[1641757646561,8.819,145.13,145.09,4.0]
[1641757648162,36.48379,145.13,145.09,4.0]
[1641757648360,8.819,145.13,145.09,4.0]
[1641757648560,8.819,145.13,145.06,21.48226279]
[1641757648761,8.819,145.13,145.11,4.0]
[1641757648961,8.819,145.13,145.12,4.0]
[1641757649161,72.51908118,145.17,145.12,4.0]
[1641757649362,6.61308118,145.17,145.08,7.547]
[1641757649563,3.91360302,145.12,145.09,1.722]
[1641757649761,3.91360302,145.12,145.11,4.0]
[1641757651261,3.91360302,145.12,145.09,7.444]
[1641757651461,10.09760302,145.12,145.09,1.722]
[1641757652261,10.09760302,145.12,145.1,4.0]
[1641757652661,3.91360302,145.12,145.11,4.0]
[1641757652862,6.61310037,145.17,145.11,4.0]
[1641757653061,6.61310037,145.17,145.13,4.0]
[1641757653263,6.61310037,145.17,145.09,7.444]
[1641757653460,6.61310037,145.17,145.13,4.0]
[1641757654061,6.61310037,145.17,145.1,14.59331267]
[1641757654761,6.61310037,145.17,145.11,4.0]
[1641757656564,6.61310037,145.17,145.12,4.0]
[1641757656763,6.61310037,145.17,145.13,4.0]
[1641757657164,73.67981232,145.2,145.11,4.0]
[1641757657565,5.51078821,145.17,145.1,4.0]
[1641757657765,5.51078821,145.17,145.11,14.59331267]
[1641757657964,14.61178821,145.17,145.11,14.59331267]
[1641757658165,27.66479,145.12,145.11,14.59331267]
[1641757658367,33.84779,145.12,145.09,9.86034076]
[1641757658566,5.51347075,145.1,145.08,38.32323012]
[1641757658765,5.51347075,145.1,145.06,4.0]
[1641757659367,5.51347075,145.1,145.04,38.32323012]
[1641757659567,5.51347075,145.1,145.03,9.86969608]
[1641757659967,5.51347075,145.1,145.04,4.0]
[1641757660368,5.51347075,145.1,145.03,9.86969608]
[1641757661070,5.51347075,145.1,145.06,4.0]
[1641757661671,5.51347075,145.1,145.02,31.66479]
[1641757661872,5.51347075,145.1,145.06,8.501]
[1641757662074,5.51347075,145.1,145.06,12.501]
[1641757662273,5.51347075,145.1,145.06,8.501]
[1641757663374,5.51347075,145.1,145.07,4.0]
[1641757665375,27.66479,145.12,145.06,8.501]
[1641757665575,70.011,145.13,145.07,4.0]
[1641757667175,70.011,145.13,145.06,18.36997551]
[1641757667376,5.51317639,145.11,145.06,18.36997551]
[1641757667577,5.51359589,145.1,145.06,18.36997551]
[1641757667877,5.51359589,145.1,145.06,8.501]
[1641757668075,5.51359589,145.1,145.04,4.0]
[1641757670277,5.51359589,145.1,145.02,27.66479]
[1641757670478,37.09214508,145.11,145.05,2.48263187]
[1641757670479,5.51485328,145.07,145.05,2.48263187]
[1641757671180,5.51531314,145.06,145.04,2.48263187]
[1641757671381,5.51554328,145.05,145.04,2.48263187]
[1641757671982,5.51554328,145.05,145.03,2.48263187]
[1641757672681,5.51554328,145.05,145.02,4.0]
[1641757672884,5.51554328,145.05,145.01,2.48263187]
[1641757673181,5.51554328,145.05,145.02,4.0]
[1641757673382,5.51554328,145.05,145.01,2.48263187]
[1641757673582,11.30054328,145.05,145.0,2.48263187]
[1641757674483,27.66479,145.01,145.0,2.48263187]
[1641757674683,27.66479,145.01,144.96,42.32323012]
[1641757674684,27.66479,145.01,144.98,2.48263187]
[1641757674883,5.51758601,145.0,144.98,2.48263187]
[1641757675484,5.51758601,145.0,144.97,2.48263187]
[1641757676285,5.51832393,144.98,144.97,2.48263187]
[1641757676488,5.51832393,144.98,144.97,3.187e-05]
[1641757676687,5.51832393,144.98,144.96,3.187e-05]
[1641757677187,5.51899411,144.96,144.94,9.85379805]
[1641757677386,5.51899411,144.96,144.91,42.32323012]
[1641757677387,40.86811348,145.01,144.91,42.32323012]
[1641757677588,40.86811348,145.01,144.91,4.0]
[1641757677789,40.86811348,145.01,144.87,67.3416]
[1641757677988,40.86811348,145.01,144.88,10.8975031]
[1641757678388,34.28511348,145.01,144.94,4.0]
[1641757678991,34.28511348,145.01,144.91,7.502]
[1641757679189,34.28511348,145.01,144.94,4.0]
[1641757679389,34.28511348,145.01,144.94,7.352]
[1641757679589,27.66479,145.01,144.94,7.352]
[1641757679789,27.66479,145.01,144.94,11.352]
[1641757680291,27.66479,145.01,144.94,7.352]
[1641757680493,27.66479,145.01,144.91,4.0]
[1641757680791,6.6209878,145.0,144.9,15.56414663]
[1641757680989,6.62146625,144.99,144.9,13.84014663]
[1641757681289,6.62146625,144.99,144.91,4.0]
[1641757681489,6.62146625,144.99,144.87,63.8936]
[1641757681691,6.62146625,144.99,144.89,4.0]
[1641757682090,6.62146625,144.99,144.87,63.8936]
[1641757682289,27.66479,144.93,144.89,4.0]
[1641757682689,5.51976609,144.94,144.89,4.0]
[1641757683490,5.52000454,144.93,144.89,4.0]
[1641757684691,5.52000454,144.93,144.85,65.5991]
[1641757684990,5.52000454,144.93,144.88,4.0]
[1641757686092,5.52000454,144.93,144.84,29.38879]
[1641757686292,33.18479454,144.93,144.84,27.66479]
[1641757686794,33.18479454,144.93,144.88,4.0]
[1641757686992,33.18479454,144.93,144.84,31.66479]
[1641757687192,5.52052903,144.92,144.84,31.66479]
[1641757687392,33.12952903,144.92,144.8,17.26131125]
[1641757687592,6.90798563,144.83,144.79,10.72323012]
[1641757687792,5.20215997,144.79,144.75,57.63414842]
[1641757687992,9.36,144.79,144.7,4.0]
[1641757688191,9.36,144.79,144.67,117.45994842]
[1641757688192,6.91037247,144.78,144.67,55.44114842]
[1641757688392,27.66479,144.76,144.74,4.0]
[1641757688591,27.66479,144.76,144.75,4.0]
[1641757688592,34.93679,144.76,144.75,4.0]
[1641757688792,7.272,144.76,144.75,8.0]
[1641757688992,7.272,144.76,144.74,4.0]
[1641757689192,7.272,144.76,144.72,4.0]
[1641757689592,7.272,144.76,144.75,4.0]
[1641757689794,7.272,144.76,144.69,4.0]
[1641757690394,27.66479,144.75,144.69,4.0]
[1641757690594,27.66479,144.75,144.73,4.0]
[1641757690794,27.66479,144.75,144.68,5.727]
[1641757690795,27.66479,144.75,144.74,4.0]
[1641757693899,31.58798476,144.75,144.74,4.0]
[1641757696100,3.92319476,144.75,144.74,8.0]
[1641757696300,18.13281614,144.86,144.74,16.673]
[1641757696500,34.29375875,144.82,144.74,36.33779]
[1641757696701,34.29375875,144.82,144.77,4.0]
[1641757697301,34.29375875,144.82,144.72,27.66479]
[1641757697502,34.29375875,144.82,144.73,4.0]
[1641757698102,34.29375875,144.82,144.77,4.0]
[1641757698701,34.29375875,144.82,144.73,4.0]
[1641757699303,34.29375875,144.82,144.78,4.0]
[1641757699902,34.29375875,144.82,144.73,8.173]
[1641757700202,34.29375875,144.82,144.78,4.0]
[1641757700402,27.66479,144.84,144.81,4.0]
[1641757700602,14.85913197,144.86,144.82,4.0]
[1641757701305,14.85913197,144.86,144.81,7.354]
[1641757701505,7.95281614,144.86,144.84,4.0]
[1641757701705,7.95281614,144.86,144.84,13.22]
[1641757701906,7.95281614,144.86,144.84,9.22]
[1641757702205,7.95281614,144.86,144.84,13.22]
[1641757702605,7.95281614,144.86,144.84,9.22]
[1641757702804,7.95281614,144.86,144.85,4.0]
[1641757703006,27.66479,144.88,144.84,9.22]
[1641757703208,35.61540489,144.9,144.87,4.0]
[1641757703509,7.95061489,144.9,144.88,4.0]
[1641757703706,7.95061489,144.9,144.87,7.245]
[1641757704307,7.95061489,144.9,144.88,4.0]
[1641757705008,35.61396439,144.93,144.88,4.0]
[1641757705208,35.61396439,144.93,144.9,4.0]
[1641757705409,35.61396439,144.93,144.92,4.0]
[1641757705611,64.5647,144.97,144.92,4.0]
[1641757705811,9.53571965,144.98,144.92,4.0]
[1641757706209,5.51905619,144.96,144.88,4.0]
[1641757706411,12.42084375,144.96,144.87,4.0]
[1641757706611,27.66479,144.96,144.95,4.0]
[1641757706810,27.66479,144.98,144.95,5.881]
[1641757707010,27.66479,144.98,144.95,9.881]
[1641757707211,6.90012075,144.99,144.95,9.881]
[1641757707411,5.51748222,145.0,144.95,9.881]
[1641757707612,5.51748222,145.0,144.95,5.881]
[1641757708010,5.51748222,145.0,144.95,9.881]
[1641757708613,33.18227222,145.0,144.95,5.881]
[1641757709013,40.08191689,145.0,144.95,5.881]
[1641757709213,40.08191689,145.0,144.94,4.0]
[1641757711013,40.08191689,145.0,144.9,37.06079]
[1641757711214,40.08191689,145.0,144.88,7.15497143]
[1641757711818,48.00691689,145.0,144.89,4.0]
[1641757712016,5.5189269,144.96,144.88,3.15497143]
[1641757712216,12.2189269,144.96,144.88,7.15497143]
[1641757712519,27.66479,144.94,144.88,7.15497143]
[1641757712716,27.66479,144.94,144.9,4.0]
[1641757712916,27.66479,144.94,144.88,7.15497143]
[1641757713317,33.18456654,144.94,144.88,7.15497143]
[1641757713515,33.18456654,144.94,144.88,3.15497143]
[1641757714017,33.18456654,144.94,144.87,27.66479]
[1641757714218,33.18456654,144.94,144.9,4.0]
[1641757716918,38.70446826,144.94,144.9,4.0]
[1641757717620,3.91971544,144.93,144.89,3.15470526]
[1641757718018,3.91971544,144.93,144.9,4.0]
[1641757718218,3.91971544,144.93,144.91,4.0]
[1641757718618,3.91971544,144.93,144.92,4.0]
[1641757718819,3.91971544,144.93,144.92,11.048]
[1641757719719,5.5182485,144.98,144.92,15.048]
[1641757719920,5.5182485,144.98,144.93,4.0]
[1641757720423,27.66479,145.0,144.97,4.0]
[1641757720620,7.94411201,145.02,144.97,11.834]
[1641757721021,7.94411201,145.02,144.97,7.834]
[1641757721220,7.94411201,145.02,144.98,4.0]
[1641757722623,7.94411201,145.02,144.94,4.0]
[1641757722823,27.66479,145.01,144.92,34.71279]
[1641757723022,5.51767731,144.99,144.92,31.66479]
[1641757723222,5.51767731,144.99,144.92,34.81908931]
[1641757723423,5.51845832,144.97,144.92,34.81908931]
[1641757723924,5.51845832,144.97,144.92,30.81908931]
[1641757724424,5.51845832,144.97,144.93,4.0]
[1641757724826,33.18324832,144.97,144.92,3.15429931]
[1641757725629,5.51887059,144.96,144.92,7.15429931]
[1641757726031,5.51887059,144.96,144.92,3.15429931]
[1641757726228,5.52003246,144.93,144.92,3.15429931]
[1641757726628,5.52003246,144.93,144.87,4.0]
[1641757726828,33.18482246,144.93,144.88,4.0]
[1641757727029,33.18482246,144.93,144.86,27.66479]
[1641757728131,33.18482246,144.93,144.89,4.0]
[1641757728835,33.18482246,144.93,144.86,27.66479]
[1641757729036,5.52121197,144.9,144.85,4.0]
[1641757729235,5.52121197,144.9,144.83,14.5441585]
[1641757729435,5.52202717,144.88,144.83,18.5441585]
[1641757729634,5.52202717,144.88,144.81,14.5441585]
[1641757729837,5.52202717,144.88,144.82,4.0]
[1641757730035,145.20575518,144.92,144.85,4.0]
[1641757730036,5.52267874,144.86,144.85,4.0]
[1641757730237,5.52151357,144.89,144.85,4.0]
[1641757730439,5.52151357,144.89,144.87,4.0]
[1641757731438,27.66479,144.9,144.87,4.0]
[1641757732841,27.66479,144.9,144.82,6.485]
[1641757733241,27.66479,144.9,144.85,4.0]
[1641757733643,27.66479,144.9,144.83,2.48254469]
[1641757734244,27.66479,144.9,144.82,2.48254469]
[1641757734444,27.66479,144.9,144.86,4.0]
[1641757734844,27.66479,144.9,144.82,6.48254469]
[1641757735045,27.66479,144.9,144.81,46.2089485]
[1641757735245,27.66479,144.9,144.86,4.0]
[1641757735446,27.66479,144.9,144.83,9.067]
[1641757735648,33.18615121,144.9,144.86,4.0]
[1641757736047,33.18615121,144.9,144.82,2.48215079]
[1641757736247,33.18615121,144.9,144.85,4.0]
[1641757736448,33.18615121,144.9,144.82,2.48215079]
[1641757736648,3.50888332,144.89,144.83,4.0]
[1641757736849,5.52212809,144.88,144.83,4.0]
[1641757737049,5.52212809,144.88,144.82,2.48215079]
[1641757737450,5.52212809,144.88,144.84,2.48215079]
[1641757737952,5.52212809,144.88,144.85,4.0]
[1641757738154,5.52212809,144.88,144.84,13.151]
[1641757739153,5.52212809,144.88,144.84,9.151]
[1641757739353,5.52212809,144.88,144.82,4.0]
[1641757739955,5.52274394,144.86,144.82,4.0]
[1641757740157,5.52274394,144.86,144.81,14.5441585]
[1641757740356,5.52274394,144.86,144.83,2.48119079]
[1641757740961,5.52274394,144.86,144.82,2.48119079]
[1641757741158,5.52274394,144.86,144.84,4.0]
[1641757741558,5.52274394,144.86,144.82,2.48119079]
[1641757741759,5.52342121,144.84,144.82,2.48119079]
[1641757742160,7.616,144.84,144.81,11.50083703]
[1641757742361,7.616,144.84,144.79,9.86622284]
[1641757742560,6.62866441,144.83,144.75,38.65127514]
[1641757743265,27.66479,144.8,144.79,4.0]
[1641757743662,27.66479,144.8,144.72,38.65127514]
[1641757743862,36.27079,144.8,144.73,4.0]
[1641757744263,36.27079,144.8,144.72,38.65127514]
[1641757744867,36.27079,144.8,144.7,74.17701914]
[1641757745267,36.27079,144.8,144.75,4.0]
[1641757745668,36.27079,144.8,144.78,4.0]
[1641757745869,27.66479,144.81,144.78,4.0]
[1641757746068,27.66479,144.81,144.75,12.076]
[1641757746268,27.66479,144.81,144.76,4.0]
[1641757746468,27.66479,144.81,144.72,4.0]
[1641757746669,27.66479,144.81,144.78,4.0]
[1641757747068,27.66479,144.81,144.79,4.0]
[1641757747968,27.66479,144.81,144.78,4.0]
[1641757748371,27.66479,144.81,144.71,5.726]
[1641757748569,3.51064116,144.79,144.71,1.726]
[1641757748770,5.52635892,144.77,144.7,9.86622284]
[1641757749171,33.19114892,144.77,144.72,4.0]
[1641757749570,5.52713042,144.75,144.7,9.86622284]
[1641757749771,5.52713042,144.75,144.71,4.0]
[1641757749971,5.52713042,144.75,144.66,20.77444708]
[1641757751177,5.52713042,144.75,144.72,4.0]
[1641757751474,72.38951184,144.78,144.74,4.0]
[1641757751673,6.63101184,144.78,144.73,8.288]
[1641757752478,3.51117116,144.76,144.73,8.288]
[1641757752679,3.51117116,144.76,144.72,4.0]
[1641757753582,3.51117116,144.76,144.71,4.0]
[1641757753784,3.51117116,144.76,144.75,4.0]
[1641757753980,3.51117116,144.76,144.75,12.636]
[1641757754381,27.66479,144.81,144.75,12.636]
[1641757754680,27.66479,144.81,144.78,4.0]
[1641757754880,6.62773717,144.85,144.78,8.496]
[1641757755080,6.62773717,144.85,144.78,12.496]
[1641757755281,27.66479,144.84,144.78,12.496]
[1641757755480,27.66479,144.84,144.78,8.496]
[1641757756282,5.52493272,144.8,144.75,4.0]
[1641757756482,5.52493272,144.8,144.7,45.55735249]
[1641757756682,5.52493272,144.8,144.71,4.0]
[1641757756882,5.52493272,144.8,144.77,4.0]
[1641757757082,5.52493272,144.8,144.73,4.0]
[1641757757281,5.52493272,144.8,144.73,31.66479]
[1641757757483,5.52493272,144.8,144.73,35.58758131]
[1641757758082,5.52493272,144.8,144.79,4.0]
[1641757758284,5.52493272,144.8,144.73,35.58758131]
[1641757758684,5.52493272,144.8,144.79,4.0]
[1641757759485,9.36493422,144.82,144.79,4.0]
[1641757759686,2.45670998,144.82,144.79,4.0]
[1641757760087,2.45670998,144.82,144.73,39.32058131]
[1641757760287,2.45670998,144.82,144.78,4.0]
[1641757760891,2.45670998,144.82,144.74,9.85322494]
[1641757761091,2.45670998,144.82,144.76,4.0]
[1641757761392,2.45670998,144.82,144.78,4.0]
[1641757762790,5.5240434,144.83,144.78,4.0]
[1641757762990,2.4570197,144.8,144.74,13.78327105]
[1641757763492,2.4570197,144.8,144.74,3.92233403]
[1641757763692,2.4570197,144.8,144.77,4.0]
[1641757763894,2.4570197,144.8,144.74,3.92233403]
[1641757764293,2.4570197,144.8,144.78,4.0]
[1641757765095,2.4570197,144.8,144.74,3.92233403]
[1641757765295,30.1218097,144.8,144.75,4.0]
[1641757765497,5.52540147,144.79,144.75,4.0]
[1641757766297,5.52587114,144.78,144.75,4.0]
[1641757770601,5.52587114,144.78,144.73,27.66479]
[1641757770802,5.52587114,144.78,144.75,4.0]
[1641757770803,2.45741622,144.77,144.75,4.0]
[1641757772902,7.9836929,144.77,144.75,4.0]
[1641757773101,7.9836929,144.77,144.7,52.54538266]
[1641757773102,7.9836929,144.77,144.73,4.0]
[1641757773302,7.9836929,144.77,144.73,14.66626919]
[1641757773601,35.6484829,144.77,144.73,18.66626919]
[1641757774003,35.6484829,144.77,144.74,14.66626919]
[1641757774407,33.19106668,144.77,144.74,14.66626919]
[1641757775306,2.45722308,144.76,144.74,14.66626919]
[1641757776008,2.45722308,144.76,144.75,4.0]
[1641757776308,2.45722308,144.76,144.74,14.66626919]
[1641757776909,2.45722308,144.76,144.75,14.66626919]
[1641757777707,2.45722308,144.76,144.75,9.13927513]
[1641757778810,2.45722308,144.76,144.71,38.65127514]
[1641757779010,6.393,144.77,144.71,38.65127514]
[1641757779210,6.393,144.77,144.71,42.65127514]
[1641757779509,34.05779,144.77,144.71,38.65127514]
[1641757779712,34.05779,144.77,144.7,38.65127514]
[1641757780111,34.05779,144.77,144.71,4.0]
[1641757780312,40.68908687,144.77,144.7,42.65127514]
[1641757780611,40.68908687,144.77,144.7,38.65127514]
[1641757780815,40.68908687,144.77,144.75,3.92272706]
[1641757781019,2.709427,144.75,144.7,38.65127514]
[1641757781216,40.68908687,144.77,144.7,38.65127514]
[1641757781614,27.66479,144.74,144.69,4.0]
[1641757782516,27.66479,144.74,144.7,2.48967373]
[1641757783417,5.52782859,144.73,144.7,2.48967373]
[1641757784621,5.52782859,144.73,144.7,6.48967373]
[1641757785020,2.45723199,144.76,144.7,2.48967373]
[1641757785219,2.45723199,144.76,144.74,4.0]
[1641757785419,2.45723199,144.76,144.73,7.394]
[1641757785820,33.19104471,144.77,144.73,7.394]
[1641757786018,33.19104471,144.77,144.73,11.394]
[1641757786220,33.19104471,144.77,144.73,7.394]
[1641757786519,33.19104471,144.77,144.74,2.48967373]
[1641757786719,5.52700535,144.75,144.74,2.48967373]
[1641757787219,5.52576848,144.78,144.71,2.48967373]
[1641757787421,5.52576848,144.78,144.73,4.0]
[1641757788222,5.52576848,144.78,144.74,2.48967373]
[1641757789021,5.52579959,144.78,144.72,16.38378125]
[1641757789821,5.52693254,144.75,144.73,2.48967373]
[1641757790023,5.52693254,144.75,144.74,3.92338384]
[1641757790521,5.52693254,144.75,144.74,10.41305757]
[1641757790722,5.52576368,144.78,144.74,23.36805757]
[1641757791021,5.52343432,144.84,144.74,19.36805757]
[1641757791222,5.52494433,144.8,144.74,15.36805757]
[1641757791422,5.52494433,144.8,144.74,19.36805757]
[1641757791622,5.52494433,144.8,144.75,2.48967373]
[1641757791821,5.52571998,144.78,144.75,6.48967373]
[1641757792522,5.52571998,144.78,144.76,2.48967373]
[1641757794024,5.52571998,144.78,144.76,4.0]
[1641757794423,5.52571998,144.78,144.75,11.10567373]
[1641757794624,5.52571998,144.78,144.75,2.48967373]
[1641757794824,5.52571998,144.78,144.77,2.48967373]
[1641757795024,11.05155247,144.78,144.77,2.48967373]
[1641757795225,5.52583249,144.78,144.77,2.48967373]
[1641757795625,5.52583249,144.78,144.75,2.48967373]
[1641757795826,5.52502465,144.8,144.75,2.48967373]
[1641757796025,5.52502465,144.8,144.76,4.0]
[1641757796425,5.52502465,144.8,144.75,6.48967373]
[1641757796826,5.52502465,144.8,144.75,2.48967373]
[1641757797027,5.52502465,144.8,144.76,2.48967373]
[1641757797828,27.66479,144.77,144.75,2.48967373]
[1641757798428,5.52583505,144.78,144.75,2.48967373]
[1641757798627,5.52583505,144.78,144.74,6.48967373]
[1641757798827,5.52583505,144.78,144.76,4.0]
[1641757799029,27.66479,144.82,144.77,4.0]
[1641757799229,27.66479,144.82,144.76,5.818]
[1641757799528,74.03856393,144.84,144.77,2.48967373]
[1641757799727,6.62816393,144.84,144.77,2.48967373]
[1641757799928,6.62816393,144.84,144.79,4.0]
[1641757801030,6.62816393,144.84,144.77,2.48967373]
[1641757801232,5.524783,144.81,144.8,2.48967373]
[1641757801836,34.29205004,144.86,144.8,2.48967373]
[1641757802038,34.29205004,144.86,144.82,4.0]
[1641757802337,27.66479,144.88,144.85,4.0]
[1641757802540,85.87505906,144.93,144.85,13.377]
[1641757802738,6.90560044,144.88,144.78,1.725]
[1641757802940,5.52275301,144.86,144.77,2.48967373]
[1641757803138,5.525007,144.8,144.78,4.0]
[1641757803338,7.692,144.8,144.77,6.48967373]
[1641757803538,7.692,144.8,144.77,4.0]
[1641757803739,7.692,144.8,144.74,66.2324]
[1641757803938,7.692,144.8,144.73,70.31606514]
[1641757804641,7.692,144.8,144.74,12.37908575]
[1641757804846,7.692,144.8,144.78,4.0]
[1641757805040,5.52345509,144.84,144.79,4.0]
[1641757805240,5.52345509,144.84,144.77,9.482]
[1641757805442,5.52345509,144.84,144.81,4.0]
[1641757805639,5.52345509,144.84,144.81,12.538]
[1641757805841,5.52345509,144.84,144.81,8.538]
[1641757806041,5.52345509,144.84,144.81,12.538]
[1641757806443,5.52345509,144.84,144.81,8.538]
[1641757806643,5.52345509,144.84,144.79,4.0]
[1641757807042,5.52345509,144.84,144.78,27.66479]
[1641757807342,5.52345509,144.84,144.79,4.0]
[1641757807542,5.52345509,144.84,144.78,27.66479]
[1641757807743,5.52345509,144.84,144.79,2.48559229]
[1641757808343,5.52345509,144.84,144.79,6.48559229]
[1641757808543,5.52345509,144.84,144.79,2.48559229]
[1641757808742,5.52441882,144.82,144.79,2.48559229]
[1641757808943,13.95441882,144.82,144.79,2.48559229]
[1641757809143,13.95441882,144.82,144.78,6.48559229]
[1641757809945,13.95441882,144.82,144.78,4.0]
[1641757810345,5.52530428,144.79,144.78,4.0]
[1641757810546,12.84230428,144.79,144.78,4.0]
[1641757810947,7.317,144.79,144.78,4.0]
[1641757811350,12.84229646,144.79,144.78,4.0]
[1641757813948,5.52584986,144.78,144.74,72.6842]
[1641757814148,5.52584986,144.78,144.74,4.0]
[1641757814550,5.52584986,144.78,144.73,14.65290523]
[1641757814749,5.52584986,144.78,144.75,2.48755184]
[1641757815349,5.52584986,144.78,144.77,4.0]
[1641757817452,5.52584986,144.78,144.71,42.31769523]
[1641757817854,5.52584986,144.78,144.72,2.48734982]
[1641757818255,5.52584986,144.78,144.77,4.0]
[1641757818754,1.52613709,144.77,144.73,4.0]
[1641757819155,5.52584986,144.78,144.73,4.0]
[1641757819354,5.52584986,144.78,144.74,2.48734982]
[1641757820157,9.16008245,144.78,144.74,2.48734982]
[1641757820457,27.66479,144.75,144.74,2.48734982]
[1641757820655,35.28479,144.75,144.74,2.48734982]
[1641757822858,7.62,144.75,144.74,2.48734982]
[1641757823462,11.62,144.75,144.71,14.65290523]
[1641757823660,7.62,144.75,144.71,14.65290523]
[1641757824460,5.52795944,144.72,144.71,14.65290523]
[1641757824662,5.52919401,144.69,144.67,38.65127514]
[1641757824862,12.24719401,144.69,144.67,14.66101346]
[1641757825663,5.52992378,144.67,144.61,44.37827514]
[1641757825863,5.52992378,144.67,144.61,59.17225281]
[1641757826064,5.52992378,144.67,144.61,53.44525281]
[1641757826563,5.52992378,144.67,144.6,114.87412517]
[1641757826763,5.52992378,144.67,144.6,107.96327514]
[1641757826963,5.52992378,144.67,144.6,103.96327514]
[1641757827164,5.52992378,144.67,144.6,38.65127514]
[1641757827363,5.52992378,144.67,144.6,42.65127514]
[1641757827864,5.52992378,144.67,144.6,4.0]
[1641757828865,5.52992378,144.67,144.61,4.0]
[1641757829066,5.52882617,144.7,144.68,3.92512115]
[1641757829266,31.30033856,144.72,144.68,12.50312115]
[1641757830467,31.30033856,144.72,144.68,3.92512115]
[1641757831769,5.52834402,144.71,144.68,3.92512115]
[1641757832169,5.52909714,144.69,144.68,3.92512115]
[1641757832769,33.19278981,144.72,144.68,3.92512115]
[1641757832970,33.19278981,144.72,144.68,6.26]
[1641757833171,5.52799981,144.72,144.68,6.26]
[1641757833369,3.63557723,144.71,144.68,6.26]
[1641757833771,3.63557723,144.71,144.69,4.0]
[1641757834072,134.4925,144.77,144.68,10.26]
[1641757834472,134.4925,144.77,144.69,27.66479]
[1641757834671,138.4925,144.77,144.69,27.66479]
[1641757834871,134.4925,144.77,144.69,27.66479]
[1641757835071,5.5275421,144.73,144.65,73.2974]
[1641757835271,11.2345421,144.73,144.65,73.2974]
[1641757835471,11.2345421,144.73,144.65,4.0]
[1641757836675,11.2345421,144.73,144.66,27.66479]
[1641757837476,3.6351962,144.71,144.69,3.92441724]
[1641757839977,3.6351962,144.71,144.69,2.62441724]
[1641757840179,3.6351962,144.71,144.69,0.88441724]
[1641757840378,3.6351962,144.71,144.69,0.00441724]
[1641757841079,27.66479,144.72,144.63,97.52019]
[1641757841279,27.66479,144.72,144.7,3.92509635]
[1641757842780,5.52855513,144.71,144.7,3.92509635]